fUSD/lending_fUSD_20250629
["ID","MTS","AMOUNT","RATE_DAILY","PERIOD"]
[368540922,1751201458818,-1262.88,0.00024931,3]
[368540924,1751201458827,-490.0,0.00024931,3]
[368540926,1751201458836,-3744.638091,0.00024931,3]
[368540928,1751201458847,-490.0,0.00024931,3]
[368540930,1751201458856,-490.0,0.00024931,3]
[368540932,1751201458865,-490.0,0.00024931,3]
[368540934,1751201458874,-5080.63,0.00024931,3]
[368540936,1751201458884,-939.82,0.00024931,3]
[368540938,1751201458894,-490.0,0.00024931,3]
[368540940,1751201458903,-490.0,0.00024931,3]
[368540942,1751201458912,-873.06,0.00024931,3]
[368540944,1751201458922,-1783.0,0.00024931,3]
[368540946,1751201458931,-490.0,0.00024931,3]
[368540948,1751201458940,-323.58329972,0.00024931,3]
[368540950,1751201458949,-490.0,0.00024931,3]
[368540952,1751201458959,-1511.02,0.00024931,3]
[368540954,1751201458968,-622.98155529,0.00024931,3]
[368540956,1751201458978,-490.0,0.00024931,3]
[368540958,1751201458987,-490.0,0.00024931,3]
[368540960,1751201458996,-9775.63,0.00024931,3]
[368540962,1751201459005,-490.0,0.00024931,3]
[368540964,1751201459014,-490.0,0.00024931,3]
[368540966,1751201459024,-490.0,0.00024931,3]
[368540968,1751201459034,-746.41,0.00024931,3]
[368540970,1751201459043,-1049.43,0.00024931,3]
[368540972,1751201459052,-597.23,0.00024931,3]
[368540974,1751201459061,-3797.807646,0.00024931,3]
[368540976,1751201459070,-1823.96,0.00024931,3]
[368540978,1751201459079,-9241.38,0.00024931,3]
[368540980,1751201459088,-490.0,0.00024931,3]
[368540982,1751201459098,-490.0,0.00024931,3]
[368540984,1751201459107,-1359.5,0.00024931,3]
[368540986,1751201459116,-1683.59,0.00024931,3]
[368540988,1751201459125,-634.42,0.00024931,3]
[368540990,1751201459135,-490.0,0.00024931,3]
[368540992,1751201459144,-2402.91,0.00024931,3]
[368540994,1751201459154,-2068.73,0.00024931,3]
[368540996,1751201459163,-490.0,0.00024931,3]
[368540998,1751201459172,-813.3,0.00024931,3]
[368541000,1751201459181,-490.0,0.00024931,3]
[368541002,1751201459190,-498.81168416,0.00024931,3]
[368541004,1751201459199,-3244.94,0.00024931,3]
[368541006,1751201459209,-586.353159,0.00024931,3]
[368541008,1751201459219,-3712.87,0.00024931,3]
[368541010,1751201459229,-166022.76,0.00024931,3]
[368541012,1751201459238,-634.16,0.00024931,3]
[368541014,1751201459248,-490.0,0.00024931,3]
[368541016,1751201459258,-4698.94,0.00024931,3]
[368541018,1751201459267,-490.0,0.00024931,3]
[368541020,1751201459276,-490.0,0.00024931,3]
[368541022,1751201459285,-1204.81,0.00024931,3]
[368541024,1751201459295,-691.8,0.00024931,3]
[368541026,1751201459304,-187.00314376,0.00024931,3]
[368541028,1751201459314,-1229.38,0.00024931,3]
[368541030,1751201459323,-2217.91,0.00024931,3]
[368541032,1751201459333,-2714.07,0.00024931,3]
[368541034,1751201459342,-2226.72,0.00024931,3]
[368541036,1751201459352,-170.11476156,0.00024931,3]
[368541038,1751201459361,-558.0,0.00024931,3]
[368541040,1751201459371,-2368.88,0.00024931,3]
[368541043,1751201459381,-490.0,0.00024931,3]
[368541045,1751201459391,-22757.68,0.00024931,3]
[368541047,1751201459400,-490.0,0.00024931,3]
[368541049,1751201459410,-490.0,0.00024931,3]
[368541051,1751201459419,-673.33,0.00024931,3]
[368541053,1751201459429,-2930.2,0.00024931,3]
[368541055,1751201459439,-4676.9,0.00024931,3]
[368541057,1751201459448,-3085.02,0.00024931,3]
[368541059,1751201459457,-1480.46,0.00024931,3]
[368541061,1751201459467,-490.0,0.00024931,3]
[368541063,1751201459476,-490.0,0.00024931,3]
[368541065,1751201459486,-490.0,0.00024931,3]
[368541067,1751201459495,-1980.31,0.00024931,3]
[368541069,1751201459505,-492.42694835,0.00024931,3]
[368541071,1751201459514,-508.31,0.00024931,3]
[368541073,1751201459524,-2722.07,0.00024931,3]
[368541075,1751201459535,-490.0,0.00024931,3]
[368541077,1751201459544,-490.0,0.00024931,3]
[368541079,1751201459554,-1115.4,0.00024931,3]
[368541081,1751201459565,-1002.36,0.00024931,3]
[368541083,1751201459574,-1865.6,0.00024931,3]
[368541085,1751201459584,-964.89,0.00024931,3]
[368541087,1751201459594,-490.0,0.00024931,3]
[368541089,1751201459604,-1341.54,0.00024931,3]
[368541091,1751201459613,-4700.51,0.00024931,3]
[368541093,1751201459623,-2008.28,0.00024931,3]
[368541095,1751201459633,-490.0,0.00024931,3]
[368541097,1751201459642,-582.42177647,0.00024931,3]
[368541099,1751201459652,-490.0,0.00024931,3]
[368541101,1751201459662,-490.0,0.00024931,3]
[368541103,1751201459675,-1174.42,0.00024931,3]
[368541106,1751201459685,-490.0,0.00024931,3]
[368541108,1751201459695,-1307.54,0.00024931,3]
[368541110,1751201459704,-490.0,0.00024931,3]
[368541112,1751201459715,-1808.41,0.00024931,3]
[368541114,1751201459725,-490.0,0.00024931,3]
[368541116,1751201459735,-490.0,0.00024931,3]
[368541118,1751201459745,-873.8,0.00024931,3]
[368541120,1751201459756,-548.67,0.00024931,3]
[368541122,1751201459766,-605.96,0.00024931,3]
[368541124,1751201459776,-3578.16,0.00024931,3]
[368541126,1751201459786,-490.0,0.00024931,3]
[368541128,1751201459795,-2341.49,0.00024931,3]
[368541130,1751201459805,-1078.11,0.00024931,3]
[368541132,1751201459815,-490.0,0.00024931,3]
[368541134,1751201459824,-640.81,0.00024931,3]
[368541136,1751201459834,-673.51,0.00024931,3]
[368541138,1751201459844,-1162.04,0.00024931,3]
[368541140,1751201459854,-9457.27,0.00024931,3]
[368541142,1751201459863,-2780.87,0.00024931,3]
[368541144,1751201459873,-490.0,0.00024931,3]
[368541146,1751201459882,-3032.62,0.00024931,3]
[368541148,1751201459892,-4398.91,0.00024931,3]
[368541150,1751201459902,-1793.39,0.00024931,3]
[368541152,1751201459912,-490.0,0.00024931,3]
[368541154,1751201459921,-476.83014709,0.00024931,3]
[368541156,1751201459932,-1718.98,0.00024931,3]
[368541158,1751201459941,-490.0,0.00024931,3]
[368541160,1751201459950,-8345.96,0.00024931,3]
[368541162,1751201459960,-490.0,0.00024931,3]
[368541164,1751201459969,-2479.8,0.00024931,3]
[368541166,1751201459979,-2014.04,0.00024931,3]
[368541168,1751201459988,-2052.64,0.00024931,3]
[368541170,1751201459998,-490.0,0.00024931,3]
[368541172,1751201460007,-497.03,0.00024931,3]
[368541175,1751201460017,-1762.71,0.00024931,3]
[368541177,1751201460026,-490.0,0.00024931,3]
[368541179,1751201460037,-758.54,0.00024931,3]
[368541181,1751201460046,-490.0,0.00024931,3]
[368541183,1751201460056,-12487.92,0.00024931,3]
[368541185,1751201460066,-4880.13,0.00024931,3]
[368541187,1751201460076,-490.0,0.00024931,3]
[368541189,1751201460085,-11788.92,0.00024931,3]
[368541191,1751201460095,-1241.12,0.00024931,3]
[368541193,1751201460104,-3971.57,0.00024931,3]
[368541195,1751201460114,-10935.46,0.00024931,3]
[368541197,1751201460123,-1710.42,0.00024931,3]
[368541199,1751201460133,-1225.94,0.00024931,3]
[368541201,1751201460142,-490.0,0.00024931,3]
[368541203,1751201460152,-1046.69,0.00024931,3]
[368541205,1751201460161,-490.0,0.00024931,3]
[368541207,1751201460171,-1295.34,0.00024931,3]
[368541209,1751201460180,-490.0,0.00024931,3]
[368541211,1751201460190,-490.0,0.00024931,3]
[368541213,1751201460200,-920.38,0.00024931,3]
[368541215,1751201460210,-490.0,0.00024931,3]
[368541217,1751201460219,-490.0,0.00024931,3]
[368541219,1751201460229,-490.0,0.00024931,3]
[368541221,1751201460238,-446.39077601,0.00024931,3]
[368541223,1751201460248,-2009.31,0.00024931,3]
[368541225,1751201460258,-490.0,0.00024931,3]
[368541227,1751201460268,-490.0,0.00024931,3]
[368541229,1751201460279,-1140.01,0.00024931,3]
[368541231,1751201460288,-490.0,0.00024931,3]
[368541233,1751201460298,-490.0,0.00024931,3]
[368541235,1751201460308,-534.37,0.00024931,3]
[368541237,1751201460318,-1847.5,0.00024931,3]
[368541240,1751201460327,-1348.89,0.00024931,3]
[368541242,1751201460338,-2352.84,0.00024931,3]
[368541244,1751201460347,-490.0,0.00024931,3]
[368541246,1751201460357,-814.75,0.00024931,3]
[368541248,1751201460366,-490.0,0.00024931,3]
[368541250,1751201460376,-490.0,0.00024931,3]
[368541252,1751201460385,-4679.2,0.00024931,3]
[368541254,1751201460394,-2056.82,0.00024931,3]
[368541256,1751201460404,-490.0,0.00024931,3]
[368541258,1751201460413,-5998.04,0.00024931,3]
[368541260,1751201460423,-697.14,0.00024931,3]
[368541262,1751201460433,-490.0,0.00024931,3]
[368541264,1751201460443,-1000.0,0.00024931,3]
[368541266,1751201460453,-1364.48,0.00024931,3]
[368541268,1751201460463,-490.0,0.00024931,3]
[368541270,1751201460473,-490.0,0.00024931,3]
[368541272,1751201460482,-490.0,0.00024931,3]
[368541274,1751201460492,-2095.58,0.00024931,3]
[368541276,1751201460502,-4343.28,0.00024931,3]
[368541278,1751201460512,-490.0,0.00024931,3]
[368541280,1751201460522,-490.0,0.00024931,3]
[368541282,1751201460532,-490.0,0.00024931,3]
[368541284,1751201460541,-4762.9,0.00024931,3]
[368541286,1751201460551,-1128.7,0.00024931,3]
[368541288,1751201460560,-490.0,0.00024931,3]
[368541290,1751201460570,-2069.14,0.00024931,3]
[368541292,1751201460579,-549.20373535,0.00024931,3]
[368541294,1751201460589,-2756.7,0.00024931,3]
[368541296,1751201460598,-2725.5,0.00024931,3]
[368541298,1751201460607,-5905.19,0.00024931,3]
[368541300,1751201460617,-496.02713546,0.00024931,3]
[368541302,1751201460626,-2032.8,0.00024931,3]
[368541304,1751201460635,-490.0,0.00024931,3]
[368541306,1751201460645,-1556.56,0.00024931,3]
[368541307,1751201460655,-490.0,0.00024931,3]
[368541308,1751201460667,-774.49,0.00024931,3]
[368541309,1751201460678,-490.0,0.00024931,3]
[368541310,1751201460687,-490.0,0.00024931,3]
[368541311,1751201460698,-568.55,0.00024931,3]
[368541312,1751201460707,-1369.19,0.00024931,3]
[368541313,1751201460717,-490.0,0.00024931,3]
[368541314,1751201460727,-1974.51,0.00024931,3]
[368541315,1751201460736,-490.0,0.00024931,3]
[368541316,1751201460748,-206.39177095,0.00024931,3]
[368541317,1751201460758,-1184.06,0.00024931,3]
[368541319,1751201460767,-5766.91,0.00024931,3]
[368541321,1751201460777,-1673.1,0.00024931,3]
[368541323,1751201460787,-611.39180073,0.00024931,3]
[368541325,1751201460797,-1046.36,0.00024931,3]
[368541327,1751201460806,-490.0,0.00024931,3]
[368541329,1751201460816,-658.9,0.00024931,3]
[368541331,1751201460826,-3345.91,0.00024931,3]
[368541334,1751201460837,-3083.67,0.00024931,3]
[368541336,1751201460848,-490.0,0.00024931,3]
[368541337,1751201460857,-1978.82,0.00024931,3]
[368541340,1751201460867,-365.48363986,0.00024931,3]
[368541342,1751201460877,-609.82,0.00024931,3]
[368541344,1751201460886,-509.98,0.00024931,3]
[368541346,1751201460895,-490.0,0.00024931,3]
[368541348,1751201460904,-490.0,0.00024931,3]
[368541350,1751201460914,-502.79,0.00024931,3]
[368541352,1751201460923,-490.0,0.00024931,3]
[368541354,1751201460933,-3044.2,0.00024931,3]
[368541356,1751201460943,-490.0,0.00024931,3]
[368541358,1751201460952,-490.0,0.00024931,3]
[368541360,1751201460961,-490.0,0.00024931,3]
[368541362,1751201460971,-2746.29,0.00024931,3]
[368541364,1751201460980,-490.0,0.00024931,3]
[368541366,1751201460989,-970.0,0.00024931,3]
[368541368,1751201460998,-490.0,0.00024931,3]
[368541370,1751201461007,-1411.6,0.00024931,3]
[368541372,1751201461017,-490.0,0.00024931,3]
[368541374,1751201461027,-490.0,0.00024931,3]
[368541376,1751201461037,-1205.22,0.00024931,3]
[368541378,1751201461047,-2722.13,0.00024931,3]
[368541380,1751201461057,-1375.69,0.00024931,3]
[368541382,1751201461067,-490.0,0.00024931,3]
[368541384,1751201461076,-490.0,0.00024931,3]
[368541386,1751201461087,-490.0,0.00024931,3]
[368541388,1751201461102,-490.0,0.00024931,3]
[368541390,1751201461118,-1241.4,0.00024931,3]
[368541392,1751201461133,-2474.53,0.00024931,3]
[368541394,1751201461142,-492.86,0.00024931,3]
[368541396,1751201461152,-490.0,0.00024931,3]
[368541398,1751201461161,-490.0,0.00024931,3]
[368541400,1751201461171,-2367.77,0.00024931,3]
[368541402,1751201461180,-7583.27,0.00024931,3]
[368541404,1751201461189,-2241.35,0.00024931,3]
[368541406,1751201461198,-2866.87,0.00024931,3]
[368541408,1751201461207,-6521.19,0.00024931,3]
[368541410,1751201461217,-2600.65,0.00024931,3]
[368541412,1751201461226,-490.0,0.00024931,3]
[368541414,1751201461235,-490.0,0.00024931,3]
[368541416,1751201461245,-555.47,0.00024931,3]
[368541418,1751201461254,-490.0,0.00024931,3]
[368541420,1751201461264,-633.24,0.00024931,3]
[368541422,1751201461274,-490.0,0.00024931,3]
[368541424,1751201461284,-490.0,0.00024931,3]
[368541426,1751201461294,-490.0,0.00024931,3]
[368541429,1751201461304,-659.09,0.00024931,3]
[368541452,1751201461517,-735.99,0.00024931,3]
[368541455,1751201461534,-490.0,0.00024931,3]
[368541457,1751201461544,-490.0,0.00024931,3]
[368541459,1751201461554,-490.0,0.00024931,3]
[368541461,1751201461563,-1548.97,0.00024931,3]
[368541463,1751201461572,-1951.34,0.00024931,3]
[368541465,1751201461582,-490.0,0.00024931,3]
[368541467,1751201461591,-490.0,0.00024931,3]
[368541468,1751201461600,-490.0,0.00024931,3]
[368541470,1751201461609,-490.0,0.00024931,2]
[368541472,1751201461619,-2821.02,0.00024931,3]
[368541474,1751201461629,-490.0,0.00024931,3]
[368541476,1751201461639,-490.0,0.00024931,3]
[368541478,1751201461649,-492.08990123,0.00024931,3]
[368541481,1751201461659,-14864.1,0.00024931,3]
[368541482,1751201461671,-490.0,0.00024931,3]
[368541484,1751201461681,-490.0,0.00024931,3]
[368541486,1751201461692,-490.0,0.00024931,3]
[368541488,1751201461705,-732.61,0.00024931,3]
[368541490,1751201461715,-490.0,0.00024931,3]
[368541492,1751201461725,-3007.84,0.00024931,3]
[368541494,1751201461735,-490.0,0.00024931,3]
[368541497,1751201461750,-30654.23,0.00024931,3]
[368541499,1751201461760,-490.0,0.00024931,3]
[368541501,1751201461769,-1151.43,0.00024931,3]
[368541503,1751201461780,-565.86,0.00024931,3]
[368541505,1751201461789,-490.0,0.00024931,3]
[368541507,1751201461798,-490.0,0.00024931,3]
[368541509,1751201461807,-2522.43,0.00024931,3]
[368541510,1751201461816,-1188.06,0.00024931,3]
[368541512,1751201461828,-490.0,0.00024931,3]
[368541514,1751201461837,-3060.81,0.00024931,3]
[368541517,1751201461846,-1689.56,0.00024931,3]
[368541518,1751201461855,-490.0,0.00024931,3]
[368541520,1751201461864,-2434.94,0.00024931,3]
[368541522,1751201461873,-490.0,0.00024931,3]
[368541525,1751201461883,-490.0,0.00024931,3]
[368541527,1751201461892,-1835.32,0.00024931,3]
[368541529,1751201461901,-4503.78,0.00024931,3]
[368541530,1751201461911,-4637.25,0.00024931,3]
[368541532,1751201461921,-490.0,0.00024931,3]
[368541534,1751201461930,-490.0,0.00024931,3]
[368541536,1751201461939,-490.0,0.00024931,3]
[368541538,1751201461948,-490.0,0.00024931,3]
[368541540,1751201461958,-14911.87,0.00024931,3]
[368541542,1751201461967,-3165.31,0.00024931,3]
[368541544,1751201461976,-490.0,0.00024931,3]
[368541546,1751201461985,-490.0,0.00024931,3]
[368541548,1751201461994,-1756.69,0.00024931,3]
[368541550,1751201462004,-490.0,0.00024931,3]
[368541552,1751201462013,-1741.54,0.00024931,3]
[368541554,1751201462022,-3042.94,0.00024931,3]
[368541556,1751201462032,-843.03,0.00024931,3]
[368541558,1751201462042,-490.0,0.00024931,3]
[368541560,1751201462052,-268.60337895,0.00024931,3]
[368541562,1751201462061,-494.60625258,0.00024931,3]
[368541564,1751201462070,-1719.03,0.00024931,3]
[368541566,1751201462079,-22261.02,0.00024931,3]
[368541568,1751201462088,-971.44,0.00024931,3]
[368541570,1751201462098,-744.67,0.00024931,3]
[368541572,1751201462107,-490.0,0.00024931,3]
[368541574,1751201462115,-490.0,0.00024931,3]
[368541576,1751201462124,-490.0,0.00024931,3]
[368541578,1751201462134,-2994.27,0.00024931,3]
[368541580,1751201462144,-490.0,0.00024931,3]
[368541582,1751201462153,-5396.79,0.00024931,3]
[368541584,1751201462162,-490.0,0.00024931,3]
[368541586,1751201462173,-2188.62,0.00024931,3]
[368541588,1751201462183,-385.41906306,0.00024931,3]
[368541590,1751201462192,-8364.13,0.00024931,3]
[368541592,1751201462201,-490.0,0.00024931,3]
[368541594,1751201462210,-1801.67,0.00024931,3]
[368541596,1751201462220,-490.0,0.00024931,3]
[368541598,1751201462230,-490.0,0.00024931,3]
[368541600,1751201462239,-738.25,0.00024931,3]
[368541602,1751201462248,-2524.32,0.00024931,3]
[368541604,1751201462257,-490.0,0.00024931,3]
[368541606,1751201462267,-490.0,0.00024931,2]
[368541608,1751201462276,-490.0,0.00024931,3]
[368541610,1751201462287,-2457.46,0.00024931,3]
[368541612,1751201462297,-490.0,0.00024931,3]
[368541614,1751201462306,-151.0,0.00024931,7]
[368541616,1751201462315,-490.0,0.00024931,3]
[368541618,1751201462324,-349.72992605,0.00024931,3]
[368541620,1751201462333,-490.0,0.00024931,3]
[368541622,1751201462342,-490.9894248,0.00024931,3]
[368541624,1751201462351,-7725.05,0.00024931,3]
[368541626,1751201462360,-3066.62,0.00024931,3]
[368541628,1751201462369,-590.69,0.00024931,3]
[368541630,1751201462378,-7031.44,0.00024931,3]
[368541632,1751201462387,-490.0,0.00024931,2]
[368541634,1751201462397,-490.0,0.00024931,3]
[368541636,1751201462406,-3573.98,0.00024931,3]
[368541638,1751201462415,-985.07,0.00024931,3]
[368541640,1751201462424,-1330.5,0.00024931,3]
[368541642,1751201462433,-490.0,0.00024931,3]
[368541644,1751201462443,-751.99,0.00024931,3]
[368541646,1751201462452,-5458.43,0.00024931,3]
[368541648,1751201462463,-490.0,0.00024931,3]
[368541650,1751201462472,-652.84,0.00024931,3]
[368541652,1751201462482,-214.53339754,0.00024931,3]
[368541654,1751201462491,-2295.54,0.00024931,3]
[368541656,1751201462501,-2534.03,0.00024931,3]
[368541658,1751201462510,-718.8,0.00024931,3]
[368541660,1751201462520,-1776.73,0.00024931,3]
[368541662,1751201462529,-490.0,0.00024931,3]
[368541664,1751201462538,-2443.29,0.00024931,3]
[368541666,1751201462548,-490.0,0.00024931,3]
[368541668,1751201462557,-490.0,0.00024931,3]
[368541670,1751201462567,-490.0,0.00024931,3]
[368541672,1751201462575,-4064.61,0.00024931,3]
[368541674,1751201462584,-490.0,0.00024931,3]
[368541676,1751201462594,-2331.66,0.00024931,3]
[368541677,1751201462603,-2501.95,0.00024931,3]
[368541679,1751201462612,-3661.05,0.00024931,3]
[368541681,1751201462621,-647.63,0.00024931,3]
[368541683,1751201462630,-481.14567181,0.00024931,3]
[368541685,1751201462640,-288.74,0.00024932,2]
[368541687,1751201462650,-288.74,0.00024938,2]
[368541689,1751201462659,-288.74,0.00024945,2]
[368541690,1751201462671,-150.0,0.00024959,2]
[368541691,1751201462686,-531.0,0.00025,2]
[368541692,1751201462695,-1000.0,0.00025,10]
[368541693,1751201462703,-1000.0,0.00025,10]
[368541694,1751201462712,-1000.0,0.00025,9]
[368541695,1751201462721,-1000.0,0.00025,9]
[368541696,1751201462730,-1000.0,0.00025,8]
[368541697,1751201462739,-1000.0,0.00025,8]
[368541698,1751201462748,-1000.0,0.00025,8]
[368541699,1751201462757,-1000.0,0.00025,9]
[368541700,1751201462767,-1000.0,0.00025,10]
[368541702,1751201462777,-1000.0,0.00025,7]
[368541704,1751201462786,-1000.0,0.00025,7]
[368541706,1751201462795,-1000.0,0.00025,6]
[368541708,1751201462804,-1000.0,0.00025,6]
[368541710,1751201462814,-1000.0,0.00025,5]
[368541712,1751201462823,-1000.0,0.00025,5]
[368541714,1751201462832,-1055.0,0.00025,4]
[368541716,1751201462842,-451.0,0.00025,6]
[368541718,1751201462851,-500.0,0.00025064,2]
[368541720,1751201462860,-500.0,0.00025064,2]
[368541722,1751201462869,-500.0,0.0002507,2]
[368541724,1751201462878,-159.727904,0.00025074,2]
[368541726,1751201462888,-159.72974978,0.00025074,2]
[368541728,1751201462898,-159.72974989,0.00025074,2]
[368541730,1751201462907,-159.72974989,0.00025083,2]
[368541732,1751201462915,-500.0,0.00025083,2]
[368541734,1751201462925,-159.72974989,0.00025086,2]
[368541736,1751201462934,-159.72974989,0.00025086,2]
[368541738,1751201462943,-164.72130458,0.00025086,2]
[368541740,1751201462952,-159.727904,0.00025086,2]
[368541742,1751201462961,-159.72974989,0.00025086,2]
[368541744,1751201462971,-500.0,0.00025086,2]
[368541746,1751201462979,-159.72974989,0.00025086,2]
[368541748,1751201462989,-500.0,0.00025086,2]
[368541750,1751201462999,-504.92350676,0.00025086,2]
[368541752,1751201463008,-159.727904,0.00025086,2]
[368541754,1751201463017,-500.0,0.00025086,2]
[368541756,1751201463027,-159.72974989,0.00025089,2]
[368541758,1751201463036,-500.0,0.00025089,2]
[368541760,1751201463046,-159.72974989,0.00025089,2]
[368541762,1751201463055,-500.0,0.00025089,2]
[368541764,1751201463064,-500.0,0.00025096,2]
[368541766,1751201463073,-256.13504802,0.00025096,2]
[368541767,1751201463083,-159.727904,0.00025096,2]
[368541769,1751201463092,-159.727904,0.00025096,2]
[368541771,1751201463102,-502.91280973,0.00025096,2]
[368541773,1751201463112,-159.72974989,0.00025096,2]
[368541775,1751201463121,-11892.78933754,0.00025105,2]
[368541778,1751201463131,-1667.76972537,0.00025195,2]
[368541780,1751201463141,-500.0,0.000252,2]
[368541782,1751201463150,-500.0,0.000252,2]
[368541784,1751201463160,-223.0315306,0.00025204,2]
[368541786,1751201463169,-500.0,0.00025204,3]
[368541788,1751201463179,-500.0,0.00025204,3]
[368541790,1751201463188,-1331.31,0.00025204,3]
[368541792,1751201463197,-1331.31,0.00025204,3]
[368541794,1751201463207,-490.0,0.00025205,3]
[368541796,1751201463216,-490.0,0.00025205,3]
[368541798,1751201463225,-576.55,0.00025205,3]
[368541800,1751201463235,-490.0,0.00025205,3]
[368541802,1751201463245,-557.97,0.00025205,3]
[368541804,1751201463254,-490.0,0.00025205,3]
[368541806,1751201463263,-490.0,0.00025205,3]
[368541808,1751201463273,-490.0,0.00025205,3]
[368541810,1751201463283,-490.0,0.00025205,3]
[368541812,1751201463292,-490.0,0.00025205,3]
[368541814,1751201463301,-490.0,0.00025205,3]
[368541816,1751201463311,-619.39,0.00025205,3]
[368541818,1751201463320,-490.0,0.00025205,3]
[368541820,1751201463329,-490.0,0.00025205,3]
[368541821,1751201463339,-490.0,0.00025205,3]
[368541823,1751201463349,-490.0,0.00025205,3]
[368541825,1751201463359,-1097.84,0.00025205,3]
[368541827,1751201463368,-490.0,0.00025205,3]
[368541829,1751201463377,-490.0,0.00025205,3]
[368541831,1751201463386,-832.54,0.00025205,3]
[368541833,1751201463395,-490.0,0.00025205,3]
[368541835,1751201463405,-490.0,0.00025205,3]
[368541837,1751201463414,-490.0,0.00025205,3]
[368541839,1751201463424,-490.0,0.00025205,3]
[368541841,1751201463433,-490.0,0.00025205,3]
[368541843,1751201463443,-737.78,0.00025205,3]
[368541845,1751201463452,-490.0,0.00025205,3]
[368541847,1751201463462,-490.0,0.00025205,3]
[368541849,1751201463472,-505.34,0.00025205,3]
[368541851,1751201463482,-492.31896629,0.00025205,3]
[368541853,1751201463491,-490.0,0.00025205,3]
[368541855,1751201463501,-490.0,0.00025205,3]
[368541857,1751201463510,-1000.0,0.00025205,3]
[368541859,1751201463520,-490.0,0.00025205,3]
[368541861,1751201463530,-490.0,0.00025205,3]
[368541863,1751201463540,-490.0,0.00025205,3]
[368541865,1751201463550,-708.56,0.00025205,3]
[368541867,1751201463559,-922.08,0.00025205,3]
[368541869,1751201463569,-490.0,0.00025205,3]
[368541871,1751201463578,-526.5,0.00025205,3]
[368541873,1751201463588,-490.0,0.00025205,3]
[368541875,1751201463597,-490.0,0.00025205,3]
[368541878,1751201463607,-490.0,0.00025205,3]
[368541880,1751201463616,-583.75,0.00025205,3]
[368541882,1751201463626,-490.0,0.00025205,3]
[368541883,1751201463635,-1154.98,0.00025205,3]
[368541886,1751201463645,-1519.53,0.00025205,3]
[368541888,1751201463655,-490.0,0.00025205,3]
[368541889,1751201463666,-505.62,0.00025205,3]
[368541892,1751201463677,-574.53,0.00025205,3]
[368541893,1751201463687,-490.0,0.00025205,3]
[368541895,1751201463696,-490.0,0.00025205,3]
[368541898,1751201463706,-1148.33,0.00025205,3]
[368541900,1751201463716,-556.55,0.00025205,3]
[368541902,1751201463725,-608.47,0.00025205,3]
[368541903,1751201463734,-490.0,0.00025205,3]
[368541905,1751201463744,-512.33,0.00025205,3]
[368541908,1751201463755,-530.18,0.00025205,3]
[368541910,1751201463764,-490.0,0.00025205,3]
[368541912,1751201463774,-490.0,0.00025205,3]
[368541913,1751201463783,-490.0,0.00025205,3]
[368541915,1751201463793,-640.88,0.00025205,3]
[368541917,1751201463803,-490.0,0.00025205,3]
[368541919,1751201463814,-490.0,0.00025205,3]
[368541922,1751201463824,-683.75,0.00025205,3]
[368541923,1751201463833,-1146.0,0.00025205,3]